bitfinex-derivatives/quotes_SOLF0:USTF0_20230404
["timestamp","ask_amount","ask_price","bid_price","bid_amount"]
[1680595554509,99.05134013,20.529,20.522,19.45]
[1680595560518,19.45,20.53,20.522,19.45]
[1680595565922,99.052938,20.529,20.522,19.45]
[1680595606661,19.45,20.527,20.519,19.45]
[1680595612060,19.45,20.528,20.52,19.45]
[1680595622170,19.27,20.529,20.521,19.45]
[1680595622372,99.14272609,20.528,20.521,19.45]
[1680595632878,10.0,20.527,20.521,19.45]
[1680595634879,19.45,20.522,20.513,19.45]
[1680595635081,10.0,20.521,20.513,19.45]
[1680595636581,10.0,20.521,20.513,19.33580757]
[1680595636779,19.27,20.524,20.516,19.45]
[1680595637084,19.27,20.524,20.517,10.0]
[1680595637281,0.0659024,20.525,20.52,19.45]
[1680595637482,19.45,20.527,20.52,19.45]
[1680595646493,19.27,20.525,20.517,19.45]
[1680595652893,19.27,20.523,20.515,19.45]
[1680595662002,19.45,20.524,20.516,19.45]
[1680595669409,10.0,20.523,20.516,19.45]
[1680595670511,19.45,20.524,20.516,19.45]
[1680595677619,19.51689141,20.526,20.519,19.45]
[1680595682021,0.06689141,20.526,20.521,19.45]
[1680595682219,19.45,20.528,20.521,19.45]
[1680595689525,19.45,20.525,20.518,19.45]
[1680595692027,19.45,20.524,20.517,19.45]
[1680595702034,19.27,20.523,20.516,19.45]
[1680595710440,19.27,20.526,20.518,19.45]
[1680595710740,0.07015533,20.527,20.521,19.45]
[1680595710939,19.27,20.529,20.521,19.45]
[1680595712041,0.06727789,20.531,20.524,19.45]
[1680595712742,99.29966403,20.531,20.524,19.45]
[1680595733348,113.7191006,20.531,20.524,19.45]
[1680595733549,99.23238614,20.53,20.524,19.45]
[1680595742053,99.23238614,20.53,20.523,19.45]
[1680595744658,10.0,20.529,20.523,19.45]
[1680595745060,10.0,20.53,20.523,19.45]
[1680595745256,99.25248322,20.529,20.523,19.45]
[1680595745759,99.25248322,20.53,20.523,19.45]
[1680595745960,99.25220215,20.529,20.523,19.45]
[1680595746259,33.93671446,20.531,20.523,19.45]
[1680595746561,99.25205216,20.53,20.523,19.45]
[1680595752062,19.45,20.529,20.522,19.45]
[1680595752265,67.1275,20.529,20.522,19.45]
[1680595755266,10.0,20.528,20.522,19.45]
[1680595755764,67.1275,20.529,20.522,19.45]
[1680595757468,10.0,20.528,20.522,19.45]
[1680595758167,67.1275,20.529,20.522,19.45]
[1680595761370,99.24071861,20.528,20.522,19.45]
[1680595761970,99.24071861,20.528,20.517,10.0]
[1680595762176,99.24071861,20.528,20.521,19.45]
[1680595766076,10.0,20.527,20.521,19.45]
[1680595766577,10.0,20.528,20.521,19.45]
[1680595766773,67.1275,20.529,20.521,19.45]
[1680595766972,99.24115282,20.528,20.521,19.45]
[1680595776481,19.27,20.526,20.518,19.45]
[1680595776681,10.0,20.525,20.518,19.45]
[1680595779284,19.27,20.526,20.518,19.45]
[1680595785488,19.45,20.526,20.518,19.45]
[1680595791993,19.27,20.528,20.521,19.45]
[1680595793193,10.0,20.527,20.521,19.45]
[1680595794796,29.27,20.528,20.521,19.45]
[1680595797200,19.27,20.528,20.521,19.45]
[1680595802006,19.27,20.526,20.519,19.45]
[1680595808213,19.27,20.528,20.521,19.45]
[1680595819622,10.0,20.527,20.521,19.45]
[1680595819926,19.45,20.526,20.519,19.45]
[1680595822726,19.45,20.526,20.5,145.7]
[1680595822727,19.45,20.523,20.516,19.45]
[1680595823131,10.0,20.522,20.516,19.45]
[1680595832134,19.45,20.52,20.513,19.45]
[1680595834638,10.0,20.519,20.513,19.45]
[1680595836638,19.45,20.52,20.513,19.45]
[1680595857854,10.0,20.519,20.513,19.45]
[1680595858352,19.45,20.52,20.513,19.45]
[1680595862055,19.45,20.519,20.513,19.45]
[1680595864850,19.27,20.516,20.508,19.45]
[1680595865956,10.0,20.515,20.508,19.45]
[1680595866358,19.27,20.516,20.508,19.45]
[1680595892076,19.27,20.515,20.508,19.45]
[1680595896769,10.0,20.514,20.508,19.45]
[1680595896968,19.27,20.512,20.504,19.45]
[1680595906677,19.27,20.51,20.502,19.45]
[1680595912081,19.27,20.509,20.501,19.45]
[1680595921387,19.45,20.512,20.504,19.45]
[1680595921983,19.27,20.513,20.506,19.45]
[1680595932093,19.45,20.514,20.507,19.45]
[1680595937897,10.0,20.513,20.507,19.45]
[1680595941695,19.45,20.511,20.503,19.45]
[1680595952011,19.27,20.509,20.502,19.45]
[1680595969921,19.27,20.507,20.5,19.45]
[1680595970115,19.27,20.503,20.499,14.89801538]
[1680595970320,19.27,20.503,20.495,19.45]
[1680595972421,19.27,20.503,20.495,33.92549658]
[1680595973215,19.27,20.5,20.495,14.47549658]
[1680595973522,19.27,20.5,20.492,19.45]
[1680595982133,19.27,20.502,20.495,19.45]
[1680595992034,19.27,20.501,20.495,19.45]
[1680595992236,19.27,20.501,20.494,19.45]
[1680596022154,19.45,20.5,20.493,19.45]
[1680596026350,19.45,20.494,20.488,62.6732587]
[1680596031958,19.27,20.497,20.489,19.45]
[1680596032159,19.33431807,20.498,20.49,19.45]
[1680596047264,0.06431807,20.498,20.493,19.45]
[1680596047567,19.27,20.504,20.496,19.45]
[1680596047767,66.5158,20.507,20.5,19.45]
[1680596048565,19.27,20.507,20.5,19.45]
[1680596048870,14.40807846,20.508,20.503,19.45]
[1680596049069,19.34074893,20.511,20.503,19.45]
[1680596050270,0.07074893,20.511,20.506,19.45]
[1680596050470,19.45,20.514,20.506,19.45]
[1680596052270,24.34,20.515,20.504,24.34]
[1680596059377,10.0,20.514,20.504,24.34]
[1680596060178,24.34,20.515,20.504,24.34]
[1680596062078,24.23,20.514,20.502,24.31]
[1680596074984,24.23,20.51,20.501,14.66511771]
[1680596083286,24.34,20.506,20.501,0.06334792]
[1680596083486,24.34,20.506,20.496,0.06381378]
[1680596099395,24.23,20.503,20.496,0.06381378]
[1680596103306,10.0,20.502,20.496,0.06381378]
[1680596103604,10.0,20.502,20.492,24.40286584]
[1680596103903,24.23,20.503,20.492,24.40286584]
[1680596106307,10.0,20.502,20.492,24.40286584]
[1680596110910,24.23,20.503,20.492,24.40286584]
[1680596112110,24.34,20.501,20.492,0.06286584]
[1680596117206,19.49,20.5,20.492,19.53286584]
[1680596121016,19.49,20.501,20.493,19.47]
[1680596132027,65.3954,20.503,20.495,19.49]
[1680596142035,45.9054,20.503,20.496,19.47]
[1680596144538,19.55654279,20.504,20.492,0.06286584]
[1680596144539,0.06654279,20.504,20.5,19.49]
[1680596144837,19.49,20.507,20.5,19.49]
[1680596161144,0.06926789,20.509,20.503,19.49]
[1680596161447,0.07082721,20.513,20.506,19.49]
[1680596161645,63.7866,20.514,20.506,19.49]
[1680596162040,44.2966,20.514,20.508,19.47]
[1680596167045,44.2966,20.514,20.507,24.33]
[1680596211989,44.2966,20.514,20.506,14.82538902]
[1680596212292,44.2966,20.514,20.505,24.33]
[1680596227109,44.2966,20.514,20.508,19.34]
[1680596252019,44.2966,20.514,20.51,19.34]
[1680596259014,0.06585272,20.517,20.511,10.0]
[1680596259221,0.06563568,20.521,20.516,19.3]
[1680596259420,19.44,20.525,20.516,19.3]
[1680596264123,0.06485349,20.526,20.511,0.06319587]
[1680596264124,19.47,20.52,20.513,19.3]
[1680596272027,19.44,20.519,20.512,19.34]
[1680596272222,66.8521,20.519,20.512,19.34]
[1680596274330,10.0,20.518,20.512,19.34]
[1680596274527,19.47,20.516,20.511,0.06319587]
[1680596274728,10.0,20.515,20.508,19.3]
[1680596275323,10.0,20.515,20.509,19.34]
[1680596275528,10.0,20.516,20.509,19.34]
[1680596276833,19.47,20.517,20.509,19.34]
[1680596282043,19.47,20.515,20.507,19.3]
[1680596292050,19.47,20.515,20.508,19.34]
[1680596296053,19.47,20.512,20.506,0.06781077]
[1680596296253,19.47,20.512,20.505,19.34]
[1680596305456,19.47,20.512,20.506,19.3]
[1680596315659,19.47,20.51,20.502,33.78303699]
[1680596316257,10.0,20.509,20.502,33.78303699]
[1680596319267,19.44,20.507,20.502,14.44303699]
[1680596319564,10.0,20.506,20.502,14.37432614]
[1680596319759,10.0,20.506,20.499,19.34]
[1680596320464,19.47,20.504,20.497,19.40017921]
[1680596320666,10.0,20.503,20.497,19.40017921]
[1680596320966,10.0,20.503,20.497,19.34]
[1680596321168,19.47,20.504,20.497,19.34]
[1680596331272,10.0,20.503,20.497,19.34]
[1680596332167,29.44,20.503,20.495,19.34]
[1680596332372,74.9464,20.503,20.495,19.34]
[1680596335177,19.47,20.499,20.493,0.06370325]
[1680596335474,19.47,20.499,20.491,19.3]
[1680596336277,19.47,20.499,20.489,0.06524916]
[1680596336576,19.44,20.495,20.489,0.06524916]
[1680596336782,19.44,20.495,20.485,0.06703322]
[1680596336968,19.44,20.495,20.487,19.3]
[1680596339882,10.0,20.494,20.487,19.3]
[1680596340878,19.44,20.495,20.487,19.3]
[1680596342076,24.19,20.494,20.485,0.06703322]
[1680596342380,10.0,20.493,20.485,0.06703322]
[1680596342573,70.9164,20.494,20.485,0.06703322]
[1680596342883,10.0,20.493,20.485,0.06703322]
[1680596343580,70.9164,20.494,20.485,0.06703322]
[1680596344983,10.0,20.493,20.485,0.06703322]
[1680596345974,70.9164,20.494,20.485,0.06703322]
[1680596346984,10.0,20.493,20.485,0.06703322]
[1680596348784,70.9164,20.494,20.485,0.06703322]
[1680596349086,10.0,20.493,20.485,0.06703322]
[1680596351387,24.39,20.491,20.485,0.06703322]
[1680596351587,24.39,20.491,20.481,0.06563438]
[1680596359898,10.06634163,20.493,20.483,24.39]
[1680596359899,0.06634163,20.493,20.483,24.39]
[1680596361991,0.06634163,20.493,20.485,24.37]
[1680596372004,0.06634163,20.493,20.483,24.39]
[1680596375208,10.06634163,20.493,20.483,24.39]
[1680596375707,0.06634163,20.493,20.483,24.39]
[1680596376505,10.06634163,20.493,20.483,24.39]
[1680596377106,24.39,20.491,20.481,0.06563438]
[1680596387221,48.1858,20.492,20.483,24.37]
[1680596390024,0.06634163,20.493,20.483,24.37]
[1680596390322,0.06634163,20.493,20.486,24.37]
[1680596392122,0.06634163,20.493,20.484,24.39]
[1680596397427,24.41634163,20.493,20.482,24.39]
[1680596402133,19.51,20.491,20.484,19.41]
[1680596403735,10.0,20.49,20.484,19.41]
[1680596403932,19.38,20.488,20.481,19.47563438]
[1680596407042,19.38,20.485,20.481,0.06563438]
[1680596407235,19.38,20.485,20.477,19.41]
[1680596407434,10.0,20.484,20.477,19.41]
[1680596408129,10.0,20.484,20.477,34.00394865]
[1680596408334,19.51,20.48,20.476,0.06142255]
[1680596408537,19.51,20.48,20.473,19.41]
[1680596408735,19.44,20.48,20.473,19.47]
[1680596410734,19.44,20.48,20.473,33.85777908]
[1680596411137,19.44,20.483,20.476,19.47]
[1680596412139,0.07032855,20.484,20.474,24.33]
[1680596412841,0.07032855,20.484,20.477,24.38]
[1680596444447,0.07032855,20.484,20.476,100.0]
[1680596445248,0.07032855,20.484,20.475,24.33]
[1680596445450,24.21,20.48,20.471,14.57282609]
[1680596445656,24.41,20.477,20.471,14.57282609]
[1680596445858,24.41,20.477,20.471,14.51018042]
[1680596446151,24.41,20.477,20.467,0.06011084]
[1680596446345,0.06254321,20.479,20.469,24.38]
[1680596446552,24.21,20.48,20.47,45.635]
[1680596446754,0.063353,20.481,20.472,24.38]
[1680596447052,0.063353,20.481,20.47,45.635]
[1680596447552,24.41,20.48,20.47,45.635]
[1680596448150,0.063353,20.481,20.472,24.38]
[1680596449555,0.063353,20.481,20.47,45.635]
[1680596449952,0.063353,20.481,20.472,24.41]
[1680596451447,0.063353,20.481,20.47,70.045]
[1680596451448,24.273353,20.481,20.47,70.045]
[1680596459362,24.273353,20.481,20.47,24.41]
[1680596459667,24.23579564,20.477,20.467,14.68517876]
[1680596459868,10.0,20.476,20.467,14.68517876]
[1680596460070,24.41,20.474,20.467,14.68517876]
[1680596461971,24.41,20.477,20.467,14.68517876]
[1680596462479,68.695,20.48,20.469,24.41]
[1680596466568,24.32,20.477,20.467,14.68517876]
[1680596466774,10.0,20.476,20.467,14.68517876]
[1680596467067,24.32,20.477,20.467,14.68517876]
[1680596467473,10.0,20.476,20.467,14.68517876]
[1680596467771,24.32,20.477,20.467,14.68517876]
[1680596475082,44.375,20.48,20.47,24.38]
[1680596475575,44.375,20.48,20.471,10.0]
[1680596478179,44.375,20.48,20.473,24.38]
[1680596478583,44.375,20.48,20.474,10.0]
[1680596478784,0.063353,20.481,20.474,10.0]
[1680596478985,0.063353,20.481,20.475,24.38]
[1680596479186,0.06729264,20.485,20.475,24.38]
[1680596479583,0.06729264,20.485,20.476,10.0]
[1680596480287,0.06729264,20.485,20.478,24.33]
[1680596480484,0.06729264,20.485,20.479,10.0]
[1680596480678,45.6421,20.488,20.479,10.0]
[1680596480883,45.6421,20.488,20.478,24.33]
[1680596481080,0.06495462,20.489,20.481,24.41]
[1680596481287,45.6421,20.498,20.485,124.33]
[1680596481483,100.0,20.513,20.488,24.38]
[1680596481484,45.5666,20.502,20.488,24.38]
[1680596481683,24.41,20.5,20.488,24.38]
[1680596481881,24.41,20.5,20.49,24.41]
[1680596482184,24.41,20.503,20.491,24.41]
[1680596482488,0.06164941,20.502,20.494,24.41]
[1680596482787,0.06233702,20.505,20.494,24.41]
[1680596492088,24.41,20.504,20.493,24.38]
[1680596496598,24.41,20.501,20.491,0.06514221]
[1680596499299,24.21,20.498,20.491,0.06514221]
[1680596522226,24.32,20.5,20.491,0.06514221]
[1680596522727,70.685,20.503,20.492,24.38]
[1680596523025,46.275,20.503,20.495,24.41]
[1680596537537,46.275,20.503,20.493,24.33]
[1680596556851,46.275,20.503,20.494,10.0]
[1680596557748,46.275,20.503,20.493,24.33]
[1680596562155,46.275,20.503,20.495,24.41]
[1680596563356,46.275,20.503,20.492,24.41]
[1680596572060,46.275,20.503,20.494,24.41]
[1680596580668,0.06233702,20.505,20.498,24.38]
[1680596581265,0.06233702,20.505,20.503,24.41]
[1680596581473,0.06196421,20.511,20.504,24.33]
[1680596581663,0.06694785,20.515,20.507,24.38]
[1680596581966,94.19914216,20.515,20.507,24.38]
[1680596582169,94.19914216,20.514,20.508,19.46]
[1680596582370,19.46,20.516,20.508,19.46]
[1680596582665,94.19802198,20.515,20.508,19.46]
[1680596584174,19.46,20.516,20.508,19.46]
[1680596587174,24.65868175,20.517,20.506,24.32]
[1680596587367,94.19643219,20.516,20.506,24.32]
[1680596587771,71.71311788,20.518,20.506,24.32]
[1680596587971,94.19649922,20.517,20.506,24.32]
[1680596590271,86.54764436,20.518,20.506,24.32]
[1680596592477,71.71311788,20.518,20.506,24.32]
[1680596595674,71.71311788,20.518,20.504,0.06033518]
[1680596595675,24.15,20.514,20.504,0.06033518]
[1680596601279,24.15,20.514,20.504,10.06033518]
[1680596601578,24.33,20.517,20.506,24.14]
[1680596647905,92.99127785,20.516,20.506,24.14]
[1680596652007,24.33,20.515,20.504,0.06033518]
[1680596652209,19.47,20.513,20.505,19.47]
[1680596662114,19.34,20.514,20.506,19.47]
[1680596663312,19.47,20.51,20.504,0.06033518]
[1680596663517,19.47,20.51,20.503,19.47]
[1680596665511,10.06147905,20.514,20.5,0.06899524]
[1680596665512,0.06147905,20.514,20.509,19.47]
[1680596665814,0.06255864,20.519,20.513,19.47]
[1680596666015,0.06193345,20.523,20.517,19.47]
[1680596666215,19.47,20.524,20.517,19.47]
[1680596666416,19.40767853,20.527,20.52,19.47]
[1680596672116,24.37767853,20.527,20.516,24.28]
[1680596679720,24.31,20.524,20.514,45.9748]
[1680596692430,10.0,20.523,20.514,45.9748]
[1680596695035,24.31,20.524,20.514,45.9748]
[1680596698238,24.31,20.521,20.514,45.9748]
[1680596698537,10.0,20.52,20.514,45.9748]
[1680596699138,24.31,20.521,20.514,45.9748]
[1680596705443,10.0,20.52,20.514,45.9748]
[1680596706346,24.31,20.521,20.514,45.9748]
[1680596707041,10.0,20.52,20.514,45.9748]
[1680596707645,24.31,20.521,20.514,45.9748]
[1680596726562,38.57252527,20.522,20.514,45.9748]
[1680596726863,24.31,20.522,20.514,45.9748]
[1680596727662,24.25,20.519,20.514,45.9748]
[1680596727960,24.25,20.519,20.508,24.31]
[1680596736070,10.0,20.518,20.508,24.31]
[1680596736767,10.0,20.518,20.506,0.06193759]
[1680596736768,24.31,20.515,20.506,0.06193759]
[1680596737368,10.0,20.518,20.506,0.06193759]
[1680596737369,19.47,20.513,20.506,19.45193759]
[1680596742070,19.47,20.513,20.506,0.06193759]
[1680596742371,10.0,20.514,20.506,0.06193759]
[1680596747077,24.34,20.515,20.506,0.06193759]
[1680596747276,0.06847765,20.517,20.507,24.16]
[1680596748077,0.06847765,20.517,20.508,44.2276]
[1680596752075,0.06847765,20.517,20.509,24.16]
[1680596754483,0.06847765,20.517,20.513,24.11]
[1680596754685,0.06007954,20.522,20.513,24.11]
[1680596754984,0.06007954,20.522,20.517,24.11]
[1680596755184,0.06037147,20.527,20.517,24.11]
[1680596762093,0.06037147,20.527,20.518,24.3]
[1680596762291,0.06037147,20.527,20.519,10.0]
[1680596762492,0.06037147,20.527,20.521,24.34]
[1680596762691,92.06240905,20.531,20.521,24.34]
[1680596765690,0.06675842,20.531,20.521,24.34]
[1680596766094,0.06675842,20.531,20.522,47.1242]
[1680596766995,0.06675842,20.531,20.525,24.11]
[1680596767195,14.35128108,20.533,20.525,24.11]
[1680596767400,10.06199542,20.535,20.525,24.11]
[1680596767597,0.06199542,20.535,20.525,24.11]
[1680596768098,0.06199542,20.535,20.522,71.4642]
[1680596768099,24.34,20.533,20.522,71.4642]
[1680596768293,10.0,20.532,20.522,24.34]
[1680596768498,10.0,20.532,20.519,0.0665693]
[1680596768499,24.34,20.529,20.519,0.0665693]
[1680596769699,10.0,20.528,20.519,0.0665693]
[1680596770802,24.34,20.529,20.519,0.0665693]
[1680596790214,24.32,20.526,20.519,0.0665693]
[1680596807025,10.0,20.525,20.519,0.0665693]
[1680596807225,29.28,20.525,20.518,19.45]
[1680596807925,19.28,20.525,20.518,19.45]
[1680596810826,19.28,20.522,20.515,19.51526448]
[1680596811122,10.0,20.53,20.515,0.06526448]
[1680596811123,19.44,20.519,20.515,0.06526448]
[1680596811328,19.44,20.516,20.51,0.06458543]
[1680596811624,19.44,20.516,20.508,19.45]
[1680596812120,0.06953611,20.52,20.506,0.07115515]
[1680596812121,24.15,20.517,20.506,0.07115515]
[1680596812324,48.3328,20.515,20.506,0.07115515]
[1680596813430,48.3328,20.515,20.509,24.14]
[1680596814329,24.39953611,20.52,20.509,24.14]
[1680596826634,10.0,20.519,20.509,24.14]
[1680596826939,24.31,20.517,20.506,24.21115515]
[1680596842038,48.4885,20.518,20.508,24.14]
[1680596868875,10.0,20.517,20.508,24.14]
[1680596869174,24.31,20.515,20.506,0.07115515]
[1680596874178,48.4885,20.518,20.507,24.14]
[1680596877182,19.34,20.517,20.509,19.46]
[1680596880185,19.48953611,20.52,20.513,19.46]
[1680596880384,0.06953611,20.52,20.517,19.46]
[1680596880683,67.3426,20.524,20.517,19.46]
[1680596886282,48.0026,20.524,20.52,19.46]
[1680596886487,0.0684159,20.526,20.52,19.46]
[1680596886687,19.34,20.527,20.52,19.46]
[1680596887190,24.1,20.529,20.518,24.3]
[1680596887390,92.15282631,20.528,20.518,24.3]
[1680596887891,24.1,20.529,20.518,24.3]
[1680596892195,0.06458945,20.53,20.52,24.24]
[1680596892395,92.21726604,20.53,20.52,24.24]
[1680596892596,0.06458945,20.53,20.52,24.24]
[1680596906306,24.3,20.528,20.517,24.3]
[1680596922016,24.3,20.528,20.516,24.3005929]
[1680596932022,24.3,20.528,20.517,24.3]
[1680596947132,19.44,20.527,20.52,19.29]
[1680596951142,0.06458945,20.53,20.523,19.29]
[1680596951335,0.06458945,20.53,20.527,19.32]
[1680596951541,19.44,20.534,20.524,10.0]
[1680596951542,0.06802622,20.536,20.529,19.29]
[1680596951742,0.06802622,20.536,20.531,19.29]
[1680596951939,19.44,20.538,20.531,19.29]
[1680596952337,92.11728865,20.537,20.531,19.29]
[1680596954741,19.44,20.538,20.531,19.29]
[1680596962239,19.44,20.538,20.531,19.32]
[1680596976449,19.44,20.538,20.526,0.06527959]
[1680596976652,19.44,20.532,20.526,0.06527959]
[1680596976852,19.44,20.529,20.522,0.06975022]
[1680596977049,19.44,20.529,20.521,19.32]
[1680596982059,19.42,20.531,20.523,19.29]
[1680596982356,10.06035456,20.532,20.522,24.17]
[1680596982552,0.06035456,20.532,20.522,24.17]
[1680596982758,0.06035456,20.532,20.525,24.11]
[1680596982950,0.06035456,20.532,20.528,24.15]
[1680596983153,0.06249513,20.537,20.528,24.15]
[1680596994561,0.06249513,20.537,20.531,24.3]
[1680596994766,0.06249513,20.537,20.521,10.0]
[1680596994767,24.3,20.549,20.536,24.17]
[1680596996067,10.0,20.548,20.536,24.17]
[1680596999571,24.3,20.549,20.536,24.17]
[1680596999773,24.3,20.549,20.538,24.15]
[1680597011078,0.06514623,20.55,20.541,24.11]
[1680597011385,0.06514623,20.55,20.544,24.11]
[1680597011583,14.46797742,20.554,20.544,24.11]
[1680597012074,2.87333442,20.553,20.544,24.11]
[1680597012379,24.3,20.552,20.541,24.17]
[1680597012977,92.07374454,20.551,20.541,24.17]
[1680597031995,92.07374454,20.551,20.542,24.17]
[1680597032195,24.3,20.553,20.542,24.17]
[1680597032394,94.9488896,20.552,20.542,24.17]
[1680597032594,94.9488896,20.551,20.542,24.17]
[1680597032787,24.3,20.553,20.542,24.17]
[1680597032991,94.94878442,20.552,20.542,24.17]
[1680597033192,94.94878442,20.551,20.542,24.17]
[1680597033394,24.3,20.553,20.542,24.17]
[1680597033587,94.94882789,20.552,20.542,24.17]
[1680597033794,94.94882789,20.551,20.542,24.17]
[1680597033999,24.3,20.553,20.542,24.17]
[1680597034298,94.94893746,20.552,20.542,24.17]
[1680597034499,94.94893746,20.551,20.542,24.17]
[1680597034797,24.3,20.553,20.542,24.17]
[1680597034998,94.94894648,20.552,20.542,24.17]
[1680597035194,94.94894648,20.551,20.542,24.17]
[1680597035395,24.3,20.553,20.542,24.17]
[1680597035694,94.94893138,20.552,20.542,24.17]
[1680597035891,2.87344623,20.551,20.542,24.17]
[1680597036094,10.0,20.552,20.542,24.17]
[1680597036396,2.87345083,20.551,20.542,24.17]
[1680597036893,24.3,20.55,20.54,0.06092557]
[1680597042002,24.3,20.55,20.541,24.17]
[1680597050105,92.07550039,20.549,20.541,24.17]
[1680597053007,24.3,20.55,20.541,24.17]
[1680597053906,92.06980827,20.549,20.541,24.17]
[1680597057109,19.4,20.548,20.541,19.29]
[1680597059810,92.06964126,20.547,20.541,19.29]
[1680597060811,19.4,20.548,20.541,19.29]
[1680597061613,92.06851345,20.547,20.541,19.29]
[1680597062005,92.06851345,20.547,20.543,19.4]
[1680597062209,92.06851345,20.546,20.543,19.4]
[1680597062410,19.4,20.55,20.543,19.4]
[1680597062613,92.06871999,20.549,20.543,19.4]
[1680597072117,111.37871999,20.549,20.542,19.4]
[1680597072320,92.06871999,20.548,20.542,19.4]
[1680597112152,111.46871999,20.548,20.541,19.4]
[1680597112356,92.06871999,20.547,20.541,19.4]
[1680597112648,92.06871999,20.547,20.54,0.06092557]
[1680597112854,19.31,20.545,20.54,0.06092557]
[1680597113052,92.06871999,20.544,20.538,19.4]
[1680597131368,19.31,20.545,20.538,19.4]
[1680597142187,19.4,20.546,20.539,19.4]
[1680597142386,92.08385181,20.545,20.539,19.4]
[1680597151995,111.39385181,20.545,20.538,19.4]
[1680597152196,19.31,20.545,20.538,19.4]
[1680597157198,65.6243,20.547,20.54,19.4]
[1680597157403,92.08224142,20.546,20.54,19.4]
[1680597162913,19.4,20.543,20.536,19.29]
[1680597163212,19.31,20.541,20.535,0.06981265]
[1680597163511,19.31,20.541,20.534,19.4]
[1680597165912,10.0,20.54,20.534,19.4]
[1680597167112,19.31,20.541,20.534,19.4]
[1680597172116,19.4,20.539,20.532,19.29]
[1680597194239,19.4,20.537,20.531,0.06803072]
[1680597194435,19.4,20.537,20.53,19.29]
[1680597202142,19.4,20.539,20.532,19.4]
[1680597234562,10.0,20.538,20.532,19.4]
[1680597238170,29.4,20.539,20.532,19.4]
[1680597238372,19.4,20.539,20.532,19.4]
[1680597241969,19.31,20.538,20.531,19.4]
[1680597251985,65.4026,20.54,20.533,19.29]
[1680597268093,0.06990656,20.541,20.539,19.29]
[1680597268397,19.4,20.546,20.539,19.29]
[1680597297627,10.0,20.545,20.539,19.29]
[1680597302031,29.31,20.545,20.538,19.29]
[1680597302826,19.31,20.545,20.538,19.29]
[1680597316945,19.31,20.542,20.535,19.29]
[1680597317139,10.0,20.541,20.535,19.29]
[1680597322052,19.31,20.54,20.533,19.35317214]
[1680597331065,19.4,20.543,20.536,19.4]
[1680597341169,34.02437424,20.543,20.536,19.4]
[1680597343368,14.62437424,20.543,20.539,19.29]
[1680597343573,19.31,20.546,20.539,19.29]
[1680597350774,0.06243182,20.547,20.542,19.29]
[1680597350977,19.4,20.549,20.542,19.29]
[1680597359584,46.0856,20.551,20.545,19.4]